bitfinex-derivatives/quotes_BNBF0:USTF0_20250309
["timestamp","ask_amount","ask_price","bid_price","bid_amount"]
[1741513803872,0.29794903,584.59,583.64,0.28678878]
[1741513804172,0.29794903,584.59,583.65,0.28678878]
[1741513804372,0.29794903,584.59,583.62,0.28678878]
[1741513804675,0.29794903,584.59,583.63,0.28678878]
[1741513804876,0.29794903,584.59,583.64,0.28678878]
[1741513805070,0.29794903,584.59,583.65,0.28678878]
[1741513805375,0.29794903,584.59,583.66,0.28678878]
[1741513805571,0.31460168,584.58,583.62,0.28678878]
[1741513805773,0.31460168,584.58,583.63,0.28678878]
[1741513806069,0.31460168,584.58,583.64,0.28678878]
[1741513806274,0.31460168,584.58,583.62,0.28678878]
[1741513806474,0.31460168,584.58,583.63,0.28678878]
[1741513806874,0.31460168,584.58,583.64,0.28678878]
[1741513807076,0.31460168,584.58,583.62,0.28678878]
[1741513807673,0.29794903,584.59,583.61,0.3426946]
[1741513807873,0.31461516,584.58,583.63,0.28690473]
[1741513808069,0.31461516,584.58,583.64,0.28690473]
[1741513808374,0.31461516,584.58,583.61,0.3426946]
[1741513808375,0.61258205,584.57,583.65,0.28690473]
[1741513808571,0.31461516,584.56,583.62,0.28690473]
[1741513808768,0.31461516,584.56,583.63,0.28690473]
[1741513809069,0.31461516,584.56,583.62,0.28690473]
[1741513809273,0.31461516,584.56,583.63,0.28690473]
[1741513809469,0.31461516,584.56,583.64,0.28690473]
[1741513809774,0.31461895,584.55,583.65,0.28692895]
[1741513809975,0.31461895,584.55,583.66,0.28692895]
[1741513810275,0.31461895,584.54,583.67,0.28692895]
[1741513810467,0.31461895,584.56,583.62,0.28692895]
[1741513810674,0.31461895,584.55,583.63,0.28692895]
[1741513810970,0.31461895,584.54,583.64,0.28692895]
[1741513811170,0.31461895,584.53,583.65,0.28692895]
[1741513811373,0.29797454,584.54,583.62,0.28692895]
[1741513811574,0.29797454,584.54,583.63,0.28692895]
[1741513811775,0.29797454,584.54,583.62,0.28692895]
[1741513812071,0.29797454,584.54,583.63,0.28692895]
[1741513812377,0.29797454,584.54,583.61,0.3426946]
[1741513812378,0.31461707,584.53,583.64,0.28692895]
[1741513812569,0.31461707,584.53,583.62,0.28692895]
[1741513812770,0.29797454,584.54,583.61,0.3426946]
[1741513812975,0.29797454,584.54,583.62,0.28625035]
[1741513814073,0.34210841,584.61,583.62,0.28625035]
[1741513814274,0.29796944,584.53,583.62,0.28625035]
[1741513814474,0.34210841,584.61,583.62,0.28625035]
[1741513815073,0.34210841,584.61,583.61,0.3426946]
[1741513815282,0.29796689,584.6,583.62,0.28621284]
[1741513816378,0.29796689,584.6,583.61,0.3426946]
[1741513816981,0.34210841,584.61,583.61,0.3426946]
[1741513817374,0.29798347,584.59,583.61,0.3426946]
[1741513819976,0.34210841,584.61,583.61,0.3426946]
[1741513820379,0.29798347,584.58,583.61,0.3426946]
[1741513821377,0.29798347,584.58,583.62,0.28689475]
[1741513821784,0.29798347,584.58,583.61,0.3426946]
[1741513821983,0.31462894,584.57,583.62,0.28692963]
[1741513822288,0.31464784,584.56,583.63,0.2869836]
[1741513822584,0.31464784,584.55,583.64,0.2869836]
[1741513822883,0.31464784,584.54,583.65,0.2869836]
[1741513823086,0.31464784,584.53,583.66,0.2869836]
[1741513823285,0.31464784,584.52,583.67,0.2869836]
[1741513823482,0.31464784,584.57,583.62,0.2869836]
[1741513823786,0.31464784,584.56,583.63,0.2869836]
[1741513823982,0.31464784,584.56,583.61,0.3426946]
[1741513823983,0.31464784,584.57,583.62,0.2869836]
[1741513824285,0.29798347,584.58,583.61,0.3426946]
[1741513824480,0.31462923,584.57,583.62,0.28690831]
[1741513826284,0.6126127,584.56,583.62,0.28690831]
[1741513826487,0.31462923,584.55,583.62,0.28690831]
[1741513828389,0.31462923,584.55,583.62,0.27993129]
[1741513829292,0.31462923,584.54,583.62,0.27993129]
[1741513829586,0.34210841,584.61,583.62,0.27993129]
[1741513829587,0.31462923,584.6,583.62,0.27993129]
[1741513829791,0.31462923,584.59,583.62,0.27993129]
[1741513830092,0.31462923,584.58,583.62,0.27993129]
[1741513830293,0.2979924,584.58,583.62,0.27993129]
[1741513830496,0.31462923,584.57,583.62,0.27993129]
[1741513832194,0.61262801,584.56,583.62,0.27993129]
[1741513832389,0.31462923,584.55,583.62,0.27993129]
[1741513832994,0.29799878,584.56,583.61,0.3426946]
[1741513833194,0.31467741,584.55,583.62,0.28700789]
[1741513835502,0.34210841,584.61,583.62,0.28700789]
[1741513835503,0.31467741,584.58,583.62,0.28700789]
[1741513835703,0.31467741,584.57,583.62,0.28700789]
[1741513836099,0.31467741,584.56,583.62,0.28700789]
[1741513836298,0.29799751,584.56,583.62,0.28700789]
[1741513836503,0.31467741,584.55,583.62,0.28700789]
[1741513838299,0.29800134,584.54,583.62,0.28700789]
[1741513838500,0.31468082,584.53,583.63,0.2869822]
[1741513838904,0.31468082,584.53,583.61,0.3426946]
[1741513839102,0.31468082,584.53,583.62,0.28695894]
[1741513839698,0.31468082,584.53,583.61,0.3426946]
[1741513840102,0.29800134,584.54,583.61,0.3426946]
[1741513840404,0.31470193,584.53,583.61,0.3426946]
[1741513841205,0.29806132,584.52,583.61,0.3426946]
[1741513841607,0.31470193,584.51,583.61,0.3426946]
[1741513842311,0.31470438,584.5,583.61,0.3426946]
[1741513842502,0.31470438,584.51,583.32,0.29806132]
[1741513842706,0.29806132,584.52,583.32,0.29806132]
[1741513842707,0.31470438,584.5,583.33,0.28705953]
[1741513842903,0.31470438,584.51,583.33,0.28705953]
[1741513843105,0.31470438,584.5,583.33,0.28705953]
[1741513843310,0.31470438,584.51,583.33,0.28705953]
[1741513844211,0.31470438,584.59,583.15,0.28705953]
[1741513844409,0.298106,584.5,583.24,0.298106]
[1741513844611,0.31470438,584.49,583.16,0.34295905]
[1741513844916,0.31470438,584.48,583.17,0.28729962]
[1741513845118,0.31470438,584.59,583.17,0.28729962]
[1741513845318,0.31470438,584.58,583.17,0.28729962]
[1741513845518,0.29810472,584.47,583.18,0.29810472]
[1741513845720,0.31470438,584.46,583.19,0.28729962]
[1741513846019,0.31470438,584.45,583.2,0.34293552]
[1741513846219,0.34220207,584.45,583.21,0.28729962]
[1741513846513,0.31470438,584.44,583.21,0.28729962]
[1741513846718,0.34221378,584.43,583.21,0.28729962]
[1741513846919,0.31470438,584.42,583.21,0.28729962]
[1741513849321,0.31470438,584.42,583.22,0.34292376]
[1741513849521,0.31470438,584.42,583.23,0.28729962]
[1741513849722,0.31470438,584.42,583.23,0.6302175]
[1741513849922,0.31470438,584.42,583.24,0.28729962]
[1741513851126,0.29811749,584.41,583.24,0.28729962]
[1741513851424,0.31470438,584.4,583.24,0.28729962]
[1741513852825,0.31470438,584.4,583.25,0.34290612]
[1741513853023,0.31470438,584.4,583.26,0.28729962]
[1741513853217,0.31470438,584.42,583.27,0.34289437]
[1741513853417,0.31470438,584.41,583.28,0.28729962]
[1741513853621,0.31470438,584.42,583.28,0.63018811]
[1741513853821,0.34221378,584.43,583.29,0.28729962]
[1741513853822,0.31470438,584.41,583.29,0.28729962]
[1741513854020,0.29809834,584.41,583.28,0.34288849]
[1741513854219,0.31477944,584.4,583.29,0.28700744]
[1741513856120,0.61287905,584.39,583.29,0.28700744]
[1741513856325,0.29809961,584.39,583.28,0.34288849]
[1741513856522,0.31478316,584.38,583.3,0.28699132]
[1741513856723,0.31478316,584.38,583.31,0.28699132]
[1741513856926,0.31478316,584.38,583.29,0.28699132]
[1741513857121,0.31478316,584.38,583.3,0.28699132]
[1741513857325,0.31478316,584.38,583.29,0.28699132]
[1741513857521,0.31478316,584.38,583.28,0.34288849]
[1741513857522,0.31478316,584.38,583.3,0.28699132]
[1741513857730,0.31478316,584.38,583.31,0.28699132]
[1741513857930,0.31478316,584.38,583.28,0.34288849]
[1741513857931,0.31478316,584.38,583.32,0.28699132]
[1741513858225,0.31478316,584.38,583.33,0.28699132]
[1741513858430,0.31478316,584.38,583.29,0.28699132]
[1741513858625,0.31478316,584.38,583.3,0.28699132]
[1741513858929,0.31478316,584.38,583.31,0.28699132]
[1741513859129,0.31478316,584.38,583.29,0.28699132]
[1741513859329,0.61288661,584.37,583.3,0.28699132]
[1741513859524,0.31478316,584.36,583.31,0.28699132]
[1741513859728,0.31478316,584.36,583.32,0.28699132]
[1741513859930,0.31478316,584.36,583.32,0.34286497]
[1741513860230,0.31478316,584.36,583.33,0.28699132]
[1741513862227,0.29809068,584.35,583.33,0.28699132]
[1741513863329,0.29809068,584.35,583.34,0.28697297]
[1741513863536,0.29809068,584.35,583.33,0.28697297]
[1741513863730,0.29809068,584.35,583.34,0.28697297]
[1741513863926,0.29809068,584.35,583.35,0.28697297]
[1741513864233,0.29809068,584.35,583.36,0.28697297]
[1741513864734,0.29809068,584.35,583.37,0.28697297]
[1741513864935,0.29809068,584.35,583.38,0.34282971]
[1741513865126,0.29809068,584.35,583.39,0.28697297]
[1741513865329,0.29809068,584.35,583.39,0.6297968]
[1741513865530,0.29809068,584.35,583.4,0.28697297]
[1741513868032,0.34221378,584.43,583.4,0.28697297]
[1741513868232,0.29805621,584.34,583.4,0.28697297]
[1741513868433,0.34221378,584.43,583.4,0.28697297]
[1741513868634,0.31469379,584.42,583.41,0.28687799]
[1741513868932,0.31469379,584.42,583.42,0.28687799]
[1741513869135,0.31469379,584.42,583.4,0.28687799]
[1741513869433,0.31469379,584.42,583.41,0.28687799]
[1741513869729,0.34221378,584.43,583.39,0.34282383]
[1741513869730,0.29805621,584.41,583.39,0.34282383]
[1741513871032,0.34221378,584.43,583.39,0.34282383]
[1741513871232,0.29806898,584.4,583.39,0.34282383]
[1741513873927,0.34221378,584.43,583.39,0.34282383]
[1741513874327,0.29806515,584.39,583.39,0.34282383]
[1741513877034,0.34221378,584.43,583.39,0.34282383]
[1741513877235,0.29806387,584.38,583.39,0.34282383]
[1741513879734,0.29806387,584.38,583.4,0.28681257]
[1741513880034,0.34221378,584.43,583.4,0.28681257]
[1741513880430,0.29805621,584.37,583.4,0.28681257]
[1741513882834,0.29805621,584.37,583.41,0.28681364]
[1741513883035,0.29805621,584.37,583.4,0.28681364]
[1741513883239,0.29805621,584.37,583.41,0.28681364]
[1741513883639,0.29805621,584.37,583.42,0.28681364]
[1741513883839,0.31472379,584.36,583.4,0.28681364]
[1741513884040,0.31472379,584.36,583.41,0.28681364]
[1741513884239,0.31472379,584.36,583.4,0.28681364]
[1741513884437,0.31472379,584.36,583.41,0.28681364]
[1741513884635,0.31472379,584.36,583.4,0.28681364]
[1741513884934,0.31472379,584.36,583.41,0.28681364]
[1741513885139,0.31472379,584.36,583.42,0.28681364]
[1741513885337,0.31472379,584.36,583.39,0.34282383]
[1741513885338,0.31472379,584.36,583.43,0.28681364]
[1741513885538,0.31472379,584.36,583.44,0.28681364]
[1741513885738,0.31472379,584.36,583.45,0.28681364]
[1741513885941,0.31472379,584.36,583.46,0.28681364]
[1741513886139,0.31472379,584.36,583.4,0.28681364]
[1741513886340,0.31472379,584.36,583.47,0.28681364]
[1741513886539,0.31472379,584.35,583.48,0.28683164]
[1741513886738,0.31472379,584.34,583.39,0.34282383]
[1741513886941,0.31472379,584.33,583.4,0.28684693]
[1741513887139,0.34221378,584.43,583.4,0.28684693]
[1741513887336,0.2981226,584.33,583.4,0.28684693]
[1741513887535,0.31475046,584.32,583.4,0.28684693]
[1741513887738,0.31475046,584.42,583.4,0.28684693]
[1741513887942,0.31475046,584.41,583.4,0.28684693]
[1741513888341,0.61282199,584.4,583.4,0.28684693]
[1741513888542,0.31475046,584.39,583.4,0.28684693]
[1741513889345,0.31475046,584.38,583.4,0.28684693]
[1741513889644,0.31475046,584.37,583.4,0.28684693]
[1741513889841,0.31475046,584.42,583.4,0.28684693]
[1741513890141,0.31475046,584.41,583.4,0.28684693]
[1741513890345,0.29807408,584.41,583.4,0.28684693]
[1741513890546,0.31475046,584.4,583.4,0.28684693]
[1741513891847,0.31475231,584.39,583.41,0.28682767]
[1741513892047,0.31475231,584.38,583.42,0.28682767]
[1741513892242,0.31475231,584.37,583.43,0.28682767]
[1741513892546,0.31475231,584.36,583.44,0.28682767]
[1741513892746,0.31475231,584.42,583.4,0.28682767]
[1741513892941,0.31475231,584.41,583.41,0.28682767]
[1741513893139,0.31475231,584.4,583.42,0.28682767]
[1741513893346,0.29808174,584.41,583.4,0.28682767]
[1741513893547,0.31475101,584.4,583.41,0.286823]
[1741513893739,0.31475101,584.4,583.42,0.286823]
[1741513893939,0.31475101,584.4,583.43,0.286823]
[1741513894141,0.31475101,584.4,583.44,0.286823]
[1741513894342,0.31475101,584.4,583.4,0.286823]
[1741513894550,0.31475101,584.4,583.41,0.286823]
[1741513894743,0.31475101,584.4,583.4,0.286823]
[1741513894947,0.31475101,584.4,583.41,0.286823]
[1741513895148,0.31475101,584.4,583.4,0.286823]
[1741513895349,1.27865714,584.37,583.41,0.286823]
[1741513895647,0.31475101,584.36,583.42,0.286823]
[1741513895842,0.31475101,584.36,583.43,0.286823]
[1741513896047,0.31475101,584.36,583.4,0.286823]
[1741513896249,0.29810983,584.35,583.41,0.286823]
[1741513896449,0.31475101,584.34,583.4,0.286823]
[1741513896648,0.31475101,584.34,583.39,0.34282383]
[1741513898247,0.31475101,584.33,583.39,0.34282383]
[1741513898444,0.31475101,584.38,583.39,0.34282383]
[1741513898650,0.31475101,584.37,583.39,0.34282383]
[1741513898848,1.27865714,584.39,583.39,0.34282383]
[1741513899049,0.31483212,584.38,583.39,0.34282383]
[1741513899253,0.29817113,584.36,583.39,0.34282383]
[1741513899550,0.31483212,584.35,583.39,0.34282383]
[1741513900147,1.27865714,584.31,583.39,0.34282383]
[1741513900353,0.31483212,584.3,583.39,0.34282383]
[1741513900753,1.27865714,584.31,583.39,0.34282383]
[1741513900951,0.31485799,584.3,583.39,0.34282383]
[1741513901552,0.31485799,584.3,582.93,1.27888907]
[1741513901752,0.31485799,584.3,583.03,0.29821457]
[1741513902052,0.31485799,584.3,583.04,0.28710957]
[1741513902246,0.31485799,584.3,582.94,0.34308848]
[1741513902247,0.31485799,584.3,583.05,0.28710957]
[1741513902454,0.29817113,584.36,582.94,0.34308848]
[1741513902649,0.65712927,584.35,582.95,0.28712853]
[1741513902855,0.31486864,584.34,583.03,0.29821329]
[1741513903054,0.31486864,584.34,582.95,0.28712853]
[1741513903257,0.31486864,584.34,582.96,0.28712853]
[1741513903556,0.34227234,584.33,582.97,0.63019935]
[1741513903756,0.31486864,584.32,582.98,0.63019347]
[1741513903955,0.31486864,584.32,582.99,0.63018758]
[1741513904255,0.34228406,584.31,583.0,0.6301817]
[1741513904457,0.31486864,584.3,583.01,0.63017581]
[1741513904655,0.31486864,584.3,583.02,0.63016993]
[1741513904956,0.31486864,584.3,583.03,0.63016405]
[1741513905151,0.31486864,584.3,583.04,0.34302963]
[1741513905349,0.31486864,584.3,583.05,0.28712853]
[1741513905553,0.31486864,584.3,583.06,0.34301787]
[1741513905754,0.31486864,584.3,583.07,0.28712853]
[1741513905956,0.31486864,584.3,583.08,0.3430061]
[1741513906255,0.31483808,584.29,583.09,0.28686386]
[1741513906459,0.31483808,584.3,583.1,0.34299434]
[1741513906756,0.31483808,584.29,583.11,0.28686386]
[1741513906957,0.31483808,584.3,583.12,0.34298257]
[1741513907157,0.31483808,584.29,583.13,0.28686386]
[1741513907351,0.29816985,584.28,583.14,0.34297081]
[1741513907557,0.29816985,584.28,583.15,0.28686386]
[1741513907759,0.31483808,584.27,583.15,0.62982879]
[1741513907958,0.31483808,584.27,583.16,0.28686386]
[1741513909357,0.31483853,584.26,583.17,0.28686771]
[1741513909560,0.31483853,584.25,583.18,0.28686695]
[1741513909759,0.31483853,584.27,583.16,0.28686695]
[1741513909959,0.31483853,584.24,583.19,0.28686695]
[1741513910161,0.31483853,584.23,583.2,0.28686695]
[1741513910357,0.31483853,584.27,583.21,0.28686695]
[1741513910561,0.31483853,584.27,583.15,0.34296493]
[1741513910562,0.31483853,584.26,583.22,0.28686695]
[1741513910862,0.31483853,584.25,583.23,0.28686695]
[1741513911161,0.31483853,584.24,583.24,0.28686695]
[1741513911361,0.31483853,584.27,583.16,0.28686695]
[1741513913059,0.34228406,584.31,583.15,0.34296493]
[1741513913260,0.29817496,584.26,583.16,0.28692012]
[1741513913557,0.31485117,584.25,583.16,0.28692012]
[1741513913961,0.29817496,584.26,583.15,0.34296493]
[1741513914359,0.31490208,584.25,583.15,0.34296493]
[1741513916366,0.61311409,584.24,583.15,0.34296493]
[1741513916670,0.31490208,584.23,583.15,0.34296493]
[1741513919165,0.61312687,584.22,583.15,0.34296493]
[1741513919363,0.31490208,584.21,583.15,0.34296493]
[1741513920668,0.29822479,584.22,583.15,0.34296493]
[1741513922069,0.34228406,584.31,583.15,0.34296493]
[1741513922270,0.29819413,584.21,583.15,0.34296493]
[1741513922471,0.34228406,584.31,583.15,0.34296493]
[1741513922665,0.31486059,584.3,583.15,0.34296493]
[1741513923268,0.29819029,584.29,583.15,0.34296493]
[1741513923473,0.31486059,584.28,583.15,0.34296493]
[1741513923868,0.31486059,584.28,583.16,0.28694873]
[1741513925275,0.31486059,584.3,583.16,0.28694873]
[1741513925472,0.31486059,584.29,583.16,0.28694873]
[1741513925678,0.31486059,584.28,583.16,0.28694873]
[1741513926080,0.31486059,584.27,583.16,0.28694873]
[1741513926279,0.31486059,584.26,583.16,0.28694873]
[1741513926675,0.31483662,584.25,583.17,0.2868692]
[1741513926881,0.31483662,584.24,583.18,0.2868692]
[1741513927277,0.31483662,584.23,583.19,0.2868692]
[1741513927580,0.31483662,584.22,583.2,0.2868692]
[1741513927978,0.31483662,584.21,583.21,0.2868692]
[1741513928175,0.31483662,584.3,583.16,0.2868692]
[1741513928482,0.34228406,584.31,583.15,0.34296493]
[1741513928682,0.31486264,584.3,583.16,0.28694042]
[1741513929383,0.29817113,584.29,583.16,0.28694042]
[1741513929683,0.31486264,584.28,583.16,0.28694042]
[1741513931180,0.31486264,584.3,583.16,0.28694042]
[1741513931380,0.2981788,584.27,583.16,0.28694042]
[1741513931578,0.31486264,584.26,583.16,0.28694042]
[1741513932177,1.27865714,584.2,583.16,0.28694042]
[1741513932378,0.31486264,584.19,583.16,0.28694042]
[1741513935085,0.61306826,584.18,583.16,0.28694042]
[1741513935384,0.29820562,584.18,583.15,0.34296493]
[1741513940288,0.34228406,584.31,583.15,0.34296493]
[1741513940488,0.29826058,584.17,583.15,0.34296493]
[1741513940686,0.34228406,584.31,583.15,0.34296493]
[1741513941588,0.29814559,584.3,583.15,0.34296493]
[1741513943087,0.34228406,584.31,583.15,0.34296493]
[1741513943389,0.34228406,584.31,583.16,0.28692369]
[1741513943390,0.29816985,584.29,583.16,0.28692369]
[1741513943587,0.29816985,584.29,583.17,0.34295316]
[1741513943785,0.31478717,584.28,583.18,0.28684167]
[1741513944090,0.31478717,584.28,583.19,0.3429414]
[1741513944289,0.31478717,584.28,583.2,0.28684167]
[1741513944585,0.31480016,584.27,583.21,0.62981478]
[1741513944885,0.31480016,584.26,583.22,0.28688514]
[1741513945089,0.31480016,584.28,583.22,0.28688514]
[1741513945389,0.31480016,584.27,583.22,0.28688514]
[1741513945589,0.29816985,584.29,583.22,0.28688514]
[1741513946092,0.34228406,584.31,583.22,0.28688514]
[1741513946291,0.29815069,584.28,583.22,0.28688514]
[1741513946687,0.29815069,584.28,583.23,0.34291788]
[1741513946885,0.29815069,584.28,583.24,0.28688514]
[1741513947089,0.29815069,584.28,583.25,0.34290612]
[1741513947286,0.29815069,584.28,583.26,0.28688514]
[1741513947488,0.29815069,584.28,583.27,0.34289437]
[1741513947691,0.29815069,584.28,583.28,0.28688514]
[1741513947892,0.29815069,584.28,583.28,0.34288849]
[1741513948088,0.29815069,584.28,583.29,0.28687776]
[1741513948994,0.34228406,584.31,583.29,0.28687776]
[1741513949294,0.29811238,584.27,583.29,0.28687776]
[1741513949887,0.29811238,584.27,583.3,0.28687413]
[1741513950092,0.29811238,584.27,583.31,0.28687413]
[1741513950392,0.29811238,584.27,583.32,0.28687413]
[1741513950588,0.29811238,584.27,583.29,0.28687413]
[1741513950786,0.29811238,584.27,583.3,0.28687413]
[1741513950987,0.29811238,584.27,583.31,0.28687413]
[1741513951191,0.29811238,584.27,583.29,0.28687413]
[1741513951988,0.31477095,584.26,583.29,0.28687413]
[1741513952187,0.31477095,584.25,583.29,0.28687413]
[1741513952393,0.29811366,584.26,583.29,0.28687413]
[1741513952989,0.31476304,584.25,583.29,0.28687413]
[1741513955388,0.31476304,584.3,583.29,0.28687413]
[1741513955586,0.3147655,584.29,583.29,0.28687413]
[1741513955791,0.3147655,584.3,583.29,0.28687413]
[1741513955986,0.3147655,584.29,583.29,0.28687413]
[1741513956191,0.3147655,584.3,583.29,0.28687413]
[1741513956389,0.29811366,584.28,583.29,0.28687413]
[1741513956593,0.3147655,584.27,583.29,0.28687413]
[1741513956993,0.29811366,584.28,583.3,0.28687882]
[1741513957194,0.31475389,584.27,583.29,0.28687882]
[1741513957493,0.31475389,584.27,583.28,0.34288849]
[1741513957494,0.31475389,584.27,583.3,0.28687882]
[1741513957697,0.31475389,584.27,583.28,0.34288849]
[1741513957698,0.31475389,584.27,583.29,0.28687882]
[1741513957893,0.31475389,584.27,583.3,0.28687882]
[1741513958093,0.31475389,584.27,583.29,0.28687882]
[1741513958294,0.31475389,584.3,583.29,0.28687882]
[1741513958497,0.29811749,584.26,583.29,0.28687882]
[1741513958697,0.29811749,584.26,583.3,0.28683314]
[1741513958891,0.29811749,584.26,583.29,0.28683314]
[1741513959094,0.31475615,584.25,583.29,0.28683314]
[1741513959496,0.29811749,584.26,583.29,0.28683314]
[1741513959692,0.31475738,584.25,583.29,0.28683314]
[1741513961201,0.34228406,584.31,583.29,0.28683314]
[1741513961401,0.29812004,584.24,583.29,0.28683314]
[1741513961600,0.34228406,584.31,583.29,0.28683314]
[1741513962195,0.34228406,584.31,583.28,0.34288849]
[1741513962398,0.34228406,584.31,583.29,0.28682538]
[1741513962598,0.29808429,584.3,583.29,0.28682538]
[1741513963996,0.34228406,584.31,583.28,0.34288849]
[1741513964199,0.31481431,584.3,583.28,0.34288849]
[1741513964401,0.34228406,584.31,583.28,0.34288849]
[1741513965304,0.29815964,584.3,583.28,0.34288849]
[1741513966503,0.31480693,584.29,583.29,0.28705862]
[1741513967196,0.61295507,584.28,583.29,0.28705862]
[1741513967401,0.29814814,584.28,583.29,0.28705862]
[1741513970001,0.34228406,584.31,583.29,0.28705862]
[1741513970203,0.29812643,584.27,583.3,0.28699724]
[1741513970403,0.29812643,584.27,583.29,0.28699724]
[1741513970603,0.29812643,584.27,583.3,0.28699724]
[1741513970803,0.29812643,584.27,583.29,0.28699724]
[1741513970997,0.29812643,584.27,583.3,0.28699724]
[1741513971400,0.29812643,584.27,583.31,0.28699724]
[1741513971605,0.29812643,584.27,583.29,0.28700973]
[1741513971807,0.29812643,584.27,583.28,0.34288849]
[1741513972007,0.29812643,584.27,583.29,0.28702087]
[1741513973005,0.34228406,584.31,583.28,0.34288849]
[1741513973204,0.34228406,584.31,583.29,0.28701385]
[1741513974411,0.29808557,584.3,583.29,0.28701385]
[1741513974910,0.29808557,584.3,583.28,0.34288849]
[1741513976012,0.34228406,584.31,583.28,0.34288849]
[1741513976313,0.31480167,584.3,583.29,0.28705466]
[1741513977114,0.29814431,584.29,583.29,0.28705466]
[1741513977314,0.31480167,584.28,583.29,0.28705466]
[1741513979315,0.31480167,584.27,583.29,0.28705466]
[1741513979514,0.31480167,584.26,583.29,0.28705466]
[1741513979808,0.31480167,584.25,583.29,0.28705466]
[1741513980012,0.34228406,584.31,583.28,0.34288849]
[1741513980013,0.31481558,584.3,583.28,0.34288849]
[1741513980214,0.29814431,584.25,583.28,0.34288849]
[1741513982115,0.34228406,584.31,583.28,0.34288849]
[1741513982311,0.31481713,584.3,583.28,0.34288849]
[1741513983314,0.29820307,584.29,583.28,0.34288849]
[1741513983515,0.31481713,584.28,583.28,0.34288849]
[1741513985417,0.31481713,584.27,583.28,0.34288849]
[1741513985612,0.29821457,584.27,583.28,0.34288849]
[1741513985917,0.31481713,584.26,583.28,0.34288849]
[1741513986716,0.31481713,584.26,583.29,0.28718095]
[1741513986917,0.29821457,584.27,583.28,0.34288849]
[1741513987217,0.31482294,584.26,583.29,0.28717606]
[1741513988316,0.31482294,584.3,583.29,0.28717606]
[1741513988515,0.29815964,584.25,583.29,0.28717606]
[1741513988718,0.31482294,584.24,583.29,0.28717606]
[1741513991226,0.31482294,584.3,583.29,0.28717606]
[1741513991425,0.31482294,584.29,583.29,0.28717606]
[1741513991626,0.31482294,584.3,583.29,0.28717606]
[1741513991927,0.31482294,584.29,583.29,0.28717606]
[1741513992123,0.31482294,584.3,583.29,0.28717606]
[1741513992324,0.61294418,584.29,583.3,0.28722741]
[1741513992525,0.31479987,584.28,583.29,0.28722741]
[1741513992729,0.31479987,584.28,583.3,0.28722741]
[1741513992930,0.31479987,584.28,583.29,0.28722741]
[1741513993125,0.31479987,584.28,583.31,0.28722741]
[1741513993330,0.31479987,584.28,583.32,0.28722741]
[1741513993531,0.31479987,584.28,583.29,0.28722741]
[1741513993731,0.31479987,584.28,583.3,0.28722741]
[1741513993930,0.31479987,584.28,583.29,0.28722741]
[1741513994330,0.31479987,584.3,583.29,0.28722741]
[1741513995232,0.29813154,584.29,583.29,0.28722741]
[1741513995429,0.31479987,584.28,583.29,0.28722741]
[1741513997329,0.31479987,584.3,583.29,0.28722741]
[1741513998235,0.29812388,584.29,583.29,0.28722741]
[1741513998435,0.31479987,584.28,583.29,0.28722741]
[1741513999237,0.29812388,584.29,583.28,0.34288849]
[1741513999539,0.31479309,584.28,583.29,0.28723632]
[1741514002640,0.29812388,584.29,583.28,0.34288849]
[1741514003037,0.34228406,584.31,583.28,0.34288849]
[1741514003234,0.29816091,584.28,583.28,0.34288849]
[1741514006134,0.34228406,584.31,583.28,0.34288849]
[1741514006338,0.29816347,584.27,583.28,0.34288849]
[1741514007741,0.31481275,584.26,583.29,0.28727357]
[1741514009345,0.29814942,584.25,583.29,0.28727357]
[1741514009743,0.31481275,584.24,583.29,0.28727357]
[1741514012147,1.27865714,584.25,583.29,0.28727357]
[1741514012349,0.29815197,584.23,583.29,0.28727357]
[1741514015049,1.27865714,584.25,583.29,0.28727357]
[1741514015243,0.34228406,584.31,583.29,0.28727357]
[1741514015447,0.29815197,584.22,583.29,0.28727357]
[1741514015648,0.34228406,584.31,583.29,0.28727357]
[1741514015949,0.34228406,584.31,583.28,0.34288849]
[1741514016149,0.31480155,584.3,583.29,0.28723286]
[1741514016951,0.29813154,584.29,583.29,0.28723286]
[1741514019352,0.29813154,584.29,583.3,0.34287673]
[1741514019551,0.29813154,584.29,583.31,0.28723286]
[1741514019747,0.29813154,584.29,583.32,0.34286497]
[1741514020151,0.29813154,584.29,583.33,0.28723286]
[1741514020453,0.29813154,584.29,583.34,0.62988173]
[1741514020653,0.29813154,584.29,583.35,0.62987585]
[1741514020851,0.29813154,584.29,583.36,0.62986998]
[1741514021047,1.27865714,584.59,583.37,0.6298641]
[1741514021256,0.31472096,584.58,583.38,0.62985822]
[1741514021550,0.31471884,584.57,583.39,0.62983081]
[1741514021747,0.31471884,584.56,583.4,0.28700698]
[1741514021951,0.31471884,584.55,583.4,0.28700698]
[1741514022154,0.68364877,584.74,583.4,0.28700698]
[1741514022155,1.27865714,584.48,583.4,0.28700698]
[1741514022354,0.31471884,584.47,583.4,0.28700698]
[1741514024552,0.31471884,584.52,583.4,0.28700698]
[1741514024757,0.31471884,584.51,583.4,0.28700698]
[1741514024958,0.31471125,584.5,583.41,0.28695407]
[1741514025154,1.27865714,584.53,583.4,0.28695407]
[1741514025155,0.31471125,584.52,583.4,0.28695407]
[1741514025355,0.29804345,584.5,583.4,0.28695407]